bitfinex-derivatives/quotes_SOLF0:USTF0_20260108
["timestamp","ask_amount","ask_price","bid_price","bid_amount"]
[1767891451979,0.30786701,137.77,137.69,0.31700183]
[1767891452180,5.4004007,137.76,137.69,0.31700183]
[1767891452380,0.30786701,137.77,137.69,0.31700183]
[1767891453084,0.30786701,137.77,137.71,6.5418]
[1767891453773,0.30786701,137.77,137.7,0.31804101]
[1767891455879,0.31806396,137.76,137.68,0.31804101]
[1767891456869,12.50346642,137.75,137.68,0.31804101]
[1767891457073,5.96336642,137.74,137.68,0.31804101]
[1767891457276,0.31806396,137.74,137.67,6.5436]
[1767891457481,5.96318134,137.73,137.65,6.86254101]
[1767891457681,0.31806396,137.73,137.65,6.86254101]
[1767891458184,0.31806396,137.73,137.66,6.5443]
[1767891460590,5.64348571,137.72,137.65,0.31804101]
[1767891460788,6.85926396,137.73,137.65,0.31804101]
[1767891460990,5.64367985,137.72,137.65,0.31804101]
[1767891461294,0.31806396,137.72,137.65,6.86274101]
[1767891461785,0.31806396,137.72,137.66,6.5443]
[1767891464584,6.5412,137.73,137.66,6.86234101]
[1767891464790,6.5412,137.73,137.67,0.31804101]
[1767891464990,0.31806396,137.74,137.67,0.31804101]
[1767891465289,5.64222149,137.73,137.67,0.31804101]
[1767891465488,0.31806396,137.74,137.67,0.31804101]
[1767891465687,5.64191638,137.73,137.67,0.31804101]
[1767891465879,0.31806396,137.74,137.67,0.31804101]
[1767891466080,5.64191638,137.73,137.67,0.31804101]
[1767891466277,0.31806396,137.74,137.67,6.86174101]
[1767891466483,5.64225686,137.73,137.67,6.86174101]
[1767891466681,0.31806396,137.74,137.67,6.86174101]
[1767891466989,5.64225686,137.73,137.67,6.86174101]
[1767891467191,0.31806396,137.74,137.67,6.86174101]
[1767891467491,5.64304169,137.73,137.67,6.86174101]
[1767891467690,0.31806396,137.74,137.67,6.86174101]
[1767891467992,5.64304333,137.73,137.67,6.86174101]
[1767891468190,0.31806396,137.74,137.67,6.86174101]
[1767891468392,5.6442805,137.73,137.67,6.86174101]
[1767891468597,0.31806396,137.74,137.67,6.86174101]
[1767891468783,5.6442805,137.73,137.67,6.86174101]
[1767891468984,0.31806396,137.74,137.68,6.5434]
[1767891469191,5.64390777,137.73,137.68,6.5434]
[1767891469391,0.31806396,137.74,137.68,6.5434]
[1767891469595,5.64505075,137.73,137.68,6.5434]
[1767891469795,0.31806396,137.74,137.68,6.5434]
[1767891469995,5.64505075,137.73,137.68,6.5434]
[1767891470292,0.31806396,137.74,137.68,6.5434]
[1767891470495,5.64659108,137.73,137.68,6.5434]
[1767891470693,0.31806396,137.74,137.68,6.5434]
[1767891470893,5.6465866,137.73,137.68,6.5434]
[1767891471093,0.31806396,137.74,137.68,6.5434]
[1767891471289,5.6465866,137.73,137.68,6.5434]
[1767891471492,0.31806396,137.74,137.68,6.5434]
[1767891471696,5.64835075,137.73,137.68,6.5434]
[1767891471894,0.31806396,137.74,137.68,6.5434]
[1767891472099,5.64834913,137.73,137.68,6.5434]
[1767891472298,5.64991269,137.72,137.67,0.31804101]
[1767891472499,0.31806396,137.74,137.67,0.31804101]
[1767891472690,5.65036306,137.73,137.67,0.31804101]
[1767891472888,0.31806396,137.77,137.69,0.02812399]
[1767891473992,0.31806396,137.77,137.7,6.57052399]
[1767891474188,0.31806396,137.76,137.67,0.02812399]
[1767891475593,6.85866396,137.74,137.67,0.02812399]
[1767891476098,88.5968347,137.77,137.64,6.57302399]
[1767891476099,0.31806396,137.72,137.64,6.57302399]
[1767891476300,0.31806396,137.72,137.64,0.02812399]
[1767891476505,0.31806396,137.74,137.65,0.02812399]
[1767891476801,0.31806396,137.74,137.68,0.02812399]
[1767891477304,0.31806396,137.8,137.69,0.02812399]
[1767891478195,0.31806396,137.79,137.73,0.04630175]
[1767891478701,0.31806396,137.79,137.72,0.02812399]
[1767891478893,0.31806396,137.79,137.72,6.56962399]
[1767891479090,0.31806396,137.79,137.75,0.05318197]
[1767891480000,0.31806396,137.81,137.75,0.05318197]
[1767891480607,0.31806396,137.81,137.75,0.08130596]
[1767891480798,86.09806396,137.83,137.75,0.08130596]
[1767891481004,86.09806396,137.83,137.75,6.62130596]
[1767891481196,86.09806396,137.83,137.76,0.02812399]
[1767891481400,0.31806396,137.83,137.76,0.02812399]
[1767891481601,0.31806396,137.83,137.77,6.56722399]
[1767891481806,0.31806396,137.85,137.78,0.02812399]
[1767891482004,0.31806396,137.85,137.78,0.07946064]
[1767891483304,0.31806396,137.85,137.78,6.61806064]
[1767891485001,5.54096238,137.84,137.78,6.61806064]
[1767891485196,5.54096238,137.83,137.78,6.61806064]
[1767891485400,0.31806396,137.85,137.78,0.05133665]
[1767891485607,5.53893267,137.84,137.78,0.05133665]
[1767891485810,5.53893267,137.83,137.78,0.05133665]
[1767891486007,0.31806396,137.85,137.78,0.05133665]
[1767891486209,5.53893554,137.84,137.78,0.05133665]
[1767891486511,5.53893554,137.83,137.78,6.58983665]
[1767891486711,0.31806396,137.85,137.78,6.58983665]
[1767891487005,5.53692198,137.84,137.78,6.58983665]
[1767891487210,5.53692198,137.83,137.78,6.58983665]
[1767891487511,0.31806396,137.85,137.78,6.58983665]
[1767891487709,5.51044647,137.84,137.78,6.58983665]
[1767891488010,0.31806396,137.85,137.78,6.58983665]
[1767891488212,5.51044647,137.84,137.78,6.58983665]
[1767891488511,0.31806396,137.85,137.78,6.58983665]
[1767891488698,5.50761675,137.84,137.78,6.58983665]
[1767891488902,0.31806396,137.85,137.78,6.58983665]
[1767891489112,5.50757124,137.84,137.78,6.58983665]
[1767891489410,0.31806396,137.85,137.78,6.58983665]
[1767891494310,0.31447074,137.87,137.79,6.5381]
[1767891494610,5.49820127,137.86,137.79,6.5381]
[1767891494811,0.31447074,137.87,137.79,6.5381]
[1767891495004,5.81266593,137.86,137.79,6.5381]
[1767891495208,5.49819519,137.85,137.79,6.5381]
[1767891497519,0.31447074,137.86,137.79,6.5381]
[1767891497924,0.31447074,137.83,137.76,6.5394]
[1767891498214,0.31447074,137.83,137.73,101.7469]
[1767891498410,0.31447074,137.83,137.76,6.5396]
[1767891498813,9.3521347,137.86,137.78,6.5386]
[1767891498814,3.13130544,137.86,137.78,6.5386]
[1767891499004,5.49596407,137.85,137.78,6.5386]
[1767891499208,0.31447074,137.86,137.75,101.7351]
[1767891499414,5.49507225,137.85,137.75,101.7351]
[1767891499719,0.31447074,137.86,137.77,101.7174]
[1767891500314,0.31447074,137.86,137.81,6.5372]
[1767891502219,0.31447074,137.86,137.77,101.7174]
[1767891502717,0.31447074,137.86,137.81,6.5372]
[1767891503024,0.31447074,137.94,137.83,101.6726]
[1767891503318,5.80609322,137.93,137.83,101.6726]
[1767891503520,0.31447074,137.93,137.83,101.6726]
[1767891504619,0.31447074,137.93,137.86,6.5348]
[1767891505636,0.31447074,137.91,137.84,6.5354]
[1767891506019,0.31447074,137.91,137.82,101.6828]
[1767891506224,0.31447074,137.91,137.86,6.5348]
[1767891507111,0.31447074,137.91,137.87,6.5342]
[1767891512124,2.8168347,137.94,137.87,6.5342]
[1767891512322,5.79753184,137.93,137.87,6.5342]
[1767891512627,7.28100895,137.92,137.87,6.5342]
[1767891512819,1.79794785,137.92,137.87,6.5342]
[1767891513923,0.30153894,137.96,137.87,101.6441]
[1767891514127,5.48436436,137.95,137.87,103.44204785]
[1767891514329,1.79794785,137.96,137.87,103.44204785]
[1767891514629,5.4832452,137.95,137.91,6.5324]
[1767891514825,2.09948679,137.96,137.91,6.5324]
[1767891515023,5.48324805,137.95,137.91,6.5324]
[1767891515220,2.09948679,137.96,137.89,6.533]
[1767891515424,5.48374075,137.95,137.89,6.533]
[1767891515628,2.09948679,137.96,137.89,6.533]
[1767891515829,5.4837452,137.95,137.89,6.533]
[1767891516129,2.09948679,137.96,137.89,6.533]
[1767891516331,1.79794785,137.94,137.89,6.533]
[1767891516631,1.79794785,137.94,137.86,85.76]
[1767891516632,2.09948679,137.94,137.86,85.76]
[1767891517628,2.09948679,137.94,137.88,6.5339]
[1767891520532,5.46748386,137.93,137.88,6.5339]
[1767891520733,2.09948679,137.94,137.88,6.5339]
[1767891521029,5.46748386,137.93,137.88,6.5339]
[1767891521231,2.09948679,137.94,137.88,6.5339]
[1767891521432,5.47190732,137.93,137.88,6.5339]
[1767891521624,2.09948679,137.94,137.88,6.5339]
[1767891521826,5.47190732,137.93,137.88,6.5339]
[1767891522026,2.09948679,137.94,137.88,6.5339]
[1767891522235,5.47190732,137.93,137.88,6.5339]
[1767891522432,2.09948679,137.94,137.88,6.5339]
[1767891522623,5.47535695,137.93,137.88,6.5339]
[1767891522828,2.09948679,137.94,137.88,6.5339]
[1767891523129,5.47535695,137.93,137.88,6.5339]
[1767891523330,2.09948679,137.94,137.88,6.5339]
[1767891523531,5.47744152,137.93,137.88,6.5339]
[1767891523737,0.30153894,137.94,137.88,6.5339]
[1767891523936,5.47744152,137.93,137.88,6.5339]
[1767891524135,5.47744152,137.92,137.88,6.5339]
[1767891524436,0.30153894,137.94,137.88,6.5339]
[1767891524638,5.47938793,137.93,137.88,6.5339]
[1767891524827,5.47938793,137.92,137.88,6.5339]
[1767891525031,0.30153894,137.94,137.88,6.5339]
[1767891525226,5.4793878,137.93,137.88,6.5339]
[1767891525430,5.4793878,137.92,137.88,6.5339]
[1767891525637,0.30153894,137.94,137.88,6.5339]
[1767891525935,5.4790928,137.93,137.88,6.5339]
[1767891526135,5.4790928,137.92,137.88,6.5339]
[1767891526328,1.79794785,137.95,137.89,6.5334]
[1767891526530,2.09948679,137.95,137.86,187.4084]
[1767891526731,2.09948679,137.95,137.86,101.6484]
[1767891526931,0.30153894,137.95,137.87,103.43924785]
[1767891527230,0.30153894,137.97,137.88,101.6383]
[1767891528740,0.30153894,137.97,137.91,6.5321]
[1767891529340,0.30153894,137.97,137.92,6.5318]
[1767891529840,0.30153894,137.97,137.89,1.79794785]
[1767891530038,0.30153894,137.97,137.93,6.5315]
[1767891530337,2.09948679,138.0,137.91,101.6159]
[1767891530531,2.09948679,138.0,137.94,6.531]
[1767891532041,1.79794785,137.98,137.93,6.5315]
[1767891533030,2.09948679,137.98,137.91,6.532]
[1767891535941,2.09948679,137.98,137.89,1.79794785]
[1767891536749,2.09948679,137.98,137.92,6.5317]
[1767891538348,5.40286875,137.97,137.92,6.5317]
[1767891538547,5.40286875,137.96,137.93,6.5314]
[1767891538749,2.09948679,137.98,137.93,6.5314]
[1767891538945,5.4036185,137.97,137.93,6.5314]
[1767891539144,5.4036185,137.96,137.93,6.5314]
[1767891539445,1.79794785,137.98,137.93,6.5314]
[1767891539642,5.40454907,137.97,137.93,6.5314]
[1767891539847,87.73948679,138.0,137.94,6.5309]
[1767891540147,2.09948679,137.99,137.9,101.6208]
[1767891540648,2.09948679,137.99,137.94,6.5309]
[1767891540843,0.30153894,138.01,137.92,101.6082]
[1767891541047,0.30153894,138.03,137.94,101.5916]
[1767891541244,2.09948679,138.03,137.94,101.5916]
[1767891541549,2.09948679,138.03,137.95,0.05095505]
[1767891541746,2.09948679,138.03,137.97,6.5296]
[1767891542239,1.79794785,138.02,137.97,6.5296]
[1767891544041,1.79794785,138.02,137.98,0.04889529]
[1767891545054,2.12314638,138.0,137.93,0.02666288]
[1767891546145,2.12314638,138.0,137.95,0.04697529]
[1767891546554,0.32519853,138.0,137.96,6.5301]
[1767891549659,1.79794785,138.01,137.97,6.5295]
[1767891549852,1.79794785,138.01,137.96,0.02666288]
[1767891550055,0.32519853,138.02,137.96,0.02666288]
[1767891550056,0.32519853,138.02,137.96,6.55666288]
[1767891550353,2.12314638,138.01,137.97,0.05554089]
[1767891551749,5.2802045,138.0,137.97,0.05554089]
[1767891551955,2.12314638,138.01,137.97,0.05554089]
[1767891552156,5.28038851,138.0,137.97,0.05554089]
[1767891552460,2.12314638,138.01,137.97,0.05554089]
[1767891552664,3.354e-05,138.0,137.97,0.05554089]
[1767891552860,2.12314638,138.01,137.97,0.05554089]
[1767891554156,0.04862743,138.0,137.97,0.05554089]
[1767891558763,0.04862743,138.0,137.97,6.58494089]
[1767891558963,0.04862743,138.0,137.97,0.05554089]
[1767891561565,0.04862743,138.0,137.97,6.58504089]
[1767891563371,0.04862743,138.0,137.98,6.5289]
[1767891563674,1.79794785,138.02,137.98,6.5289]
[1767891566970,2.10720365,138.05,137.98,0.02699439]
[1767891567174,1.79794785,138.05,137.98,0.02699439]
[1767891567875,1.79794785,138.05,138.0,6.57649498]
[1767891568377,2.10720365,138.05,138.0,6.57649498]
[1767891568964,0.3092558,138.05,138.0,6.57649498]
[1767891569369,2.10720365,138.05,138.0,6.57649498]
[1767891571077,2.10720365,138.05,138.01,6.5277]
[1767891571282,2.10720365,138.05,138.0,0.04829498]
[1767891572083,2.10720365,138.03,137.95,6.67510771]
[1767891572281,0.30774059,138.02,137.95,0.02699439]
[1767891572870,85.6,138.03,137.98,6.5291]
[1767891573075,85.90774059,138.06,137.97,0.02675095]
[1767891573373,0.30774059,138.05,137.97,0.02675095]
[1767891574170,0.30774059,138.05,138.0,6.5279]
[1767891576578,2.80556873,138.11,138.01,0.02675095]
[1767891576774,2.80556873,138.09,138.01,0.02675095]
[1767891577175,85.6,138.1,137.97,0.31210902]
[1767891577374,2.80556873,138.08,138.0,6.5281]
[1767891578085,85.6,138.1,138.0,9.33366873]
[1767891578286,6.5245,138.08,138.0,9.33366873]
[1767891578586,0.30774059,138.07,138.0,9.33366873]
[1767891579483,6.5236,138.1,138.02,2.80556873]
[1767891579681,0.30774059,138.09,138.02,2.80556873]
[1767891581188,0.30774059,138.09,138.02,3.11767775]
[1767891581377,0.30774059,138.09,138.02,9.64487775]
[1767891581584,20.36029035,138.12,138.04,0.31210902]
[1767891581585,13.83739035,138.12,138.04,0.31210902]
[1767891581785,101.4144,138.19,138.08,2.80556873]
[1767891581786,6.5208,138.16,138.08,2.80556873]
[1767891582184,92.1208,138.16,138.08,2.80556873]
[1767891582583,101.3922,138.22,138.1,3.11767775]
[1767891582890,85.6,138.21,138.11,0.31210902]
[1767891583076,6.5191,138.2,138.12,2.80556873]
[1767891583283,85.6,138.21,138.12,3.11767775]
[1767891583482,0.30774059,138.2,138.12,3.11767775]
[1767891583990,101.72204059,138.19,138.1,2.80556873]
[1767891584191,0.30774059,138.18,138.15,0.04589884]
[1767891584386,0.3609835,138.17,138.1,2.80556873]
[1767891584587,0.3609835,138.17,138.1,3.11767775]
[1767891587697,0.05324291,138.17,138.11,0.31210902]
[1767891588784,85.88774059,138.22,138.14,2.80556873]
[1767891588999,0.30774059,138.22,138.15,0.31210902]
[1767891589887,0.30774059,138.22,138.12,3.11767775]
[1767891590191,0.30774059,138.21,138.17,0.04652038]
[1767891590391,0.30774059,138.21,138.13,0.31210902]
[1767891590701,85.56,138.23,138.1,9.64077775]
[1767891590702,0.05410927,138.18,138.1,9.64077775]
[1767891590901,0.05410927,138.18,138.11,0.31210902]
[1767891591800,0.05410927,138.18,138.12,0.31210902]
[1767891592389,0.05410927,138.18,138.13,6.83410902]
[1767891592594,0.05410927,138.18,138.13,0.31210902]
[1767891592786,0.30774059,138.27,138.18,0.31210902]
[1767891592992,0.30774059,138.3,138.19,0.31210902]
[1767891593191,0.30774059,138.3,138.2,0.31210902]
[1767891594293,8.08069934,138.31,138.2,0.31210902]
[1767891594796,8.08069934,138.31,138.21,0.31210902]
[1767891595096,0.30774059,138.28,138.18,0.31210902]
[1767891595686,0.30774059,138.27,138.18,0.31210902]
[1767891596302,0.30774059,138.26,138.15,0.31210902]
[1767891596601,0.30774059,138.25,138.15,0.31210902]
[1767891596899,0.30774059,138.24,138.15,0.31210902]
[1767891597702,0.30774059,138.24,138.16,6.5204]
[1767891597995,0.30774059,138.27,138.16,0.31210902]
[1767891598597,0.30774059,138.27,138.18,6.5196]
[1767891598999,0.30774059,138.27,138.16,0.31210902]
[1767891599295,0.30774059,138.26,138.16,0.31210902]
[1767891600393,88.31613253,138.28,138.16,0.31210902]
[1767891600695,85.82774059,138.29,138.19,0.31210902]
[1767891600901,0.30774059,138.29,138.2,0.31210902]
[1767891601095,1.25915875,138.31,138.21,104.18813253]
[1767891601295,104.02773253,138.44,138.29,2.79613253]
[1767891601504,0.30774059,138.44,138.34,0.31210902]
[1767891601702,0.30774059,138.48,138.39,0.31210902]
[1767891602005,0.30774059,138.47,138.39,0.31210902]
[1767891602207,0.04659453,138.4,138.36,0.31210902]
[1767891602703,0.04659453,138.4,138.37,0.0492628]
[1767891602906,0.30774059,138.46,138.37,0.0492628]
[1767891603198,0.32789118,138.49,138.38,0.30647978]
[1767891603399,0.32789118,138.52,138.4,0.30647978]
[1767891603597,0.32789118,138.52,138.43,0.30647978]
[1767891604194,6.43e-06,138.55,138.45,0.30647978]
[1767891604396,6.43e-06,138.55,138.46,0.35375707]
[1767891604703,6.43e-06,138.55,138.48,0.30647978]
[1767891604898,6.43e-06,138.55,138.49,85.54]
[1767891605098,101.1555,138.54,138.4,0.30647978]
[1767891605301,6.5033,138.53,138.5,0.04992317]
[1767891605497,6.43e-06,138.55,138.5,0.04992317]
[1767891605702,101.14870643,138.55,138.45,0.32050942]
[1767891605893,6.5029,138.54,138.45,85.86050942]
[1767891606091,6.43e-06,138.55,138.46,0.32050942]
[1767891606603,6.43e-06,138.55,138.47,0.32050942]
[1767891606807,6.43e-06,138.55,138.47,85.84050942]
[1767891607098,6.43e-06,138.55,138.47,0.32050942]
[1767891607099,6.50270643,138.55,138.47,0.32050942]
[1767891607494,0.05293168,138.52,138.47,85.82050942]
[1767891607893,0.05293168,138.52,138.47,0.32050942]
[1767891608094,0.05293168,138.52,138.44,0.32050942]
[1767891608296,0.05293168,138.52,138.45,0.32050942]
[1767891608494,101.1607,138.54,138.45,85.80050942]
[1767891608698,101.1713,138.52,138.45,0.32050942]
[1767891608897,101.1998,138.48,138.41,0.32050942]
[1767891609201,0.04577392,138.5,138.41,0.32050942]
[1767891609399,101.46419699,138.53,138.43,0.32050942]
[1767891609601,101.1802,138.51,138.43,85.80050942]
[1767891609801,107.6844,138.51,138.43,0.32050942]
[1767891610201,101.199,138.48,138.39,0.32050942]
[1767891610396,107.713,138.47,138.39,0.32050942]
[1767891610603,101.2218,138.45,138.33,7.7681281]
[1767891610801,186.88129699,138.51,138.36,85.46]
[1767891610993,107.98559699,138.51,138.37,7.7681281]
[1767891611199,107.98559699,138.51,138.38,85.46]
[1767891611903,101.1925,138.49,138.39,85.46]
[1767891612098,101.1988,138.48,138.39,85.46]
[1767891612499,0.30139699,138.51,138.4,1.44]
[1767891612698,101.1632,138.53,138.41,0.27369531]
[1767891612898,101.1632,138.53,138.43,0.27369531]
[1767891614102,101.45919699,138.54,138.44,0.27369531]
[1767891614708,101.1723,138.52,138.44,0.27369531]
[1767891614903,101.45919699,138.54,138.44,0.27369531]
[1767891615110,101.156,138.54,138.44,0.27369531]
[1767891615299,6.43e-06,138.55,138.45,85.71369531]
[1767891616098,6.43e-06,138.55,138.46,0.27369531]
[1767891616402,6.43e-06,138.55,138.47,0.27369531]
[1767891617615,6.43e-06,138.55,138.47,85.69369531]
[1767891617915,0.30139699,138.65,138.52,0.27369531]
[1767891618112,0.30139699,138.65,138.56,0.27369531]
[1767891618613,186.4097,138.69,138.56,0.27369531]
[1767891618614,6.79769699,138.68,138.56,0.27369531]
[1767891618810,101.35719699,138.68,138.56,0.27369531]
[1767891619009,0.30139699,138.67,138.56,0.27369531]
[1767891619207,0.30139699,138.67,138.55,85.42]
[1767891619208,0.30139699,138.67,138.54,0.27369531]
[1767891619407,0.30139699,138.65,138.55,0.27369531]
[1767891619804,0.30139699,138.6,138.49,0.27369531]
[1767891620023,0.30139699,138.6,138.44,0.27369531]
[1767891620024,0.30139699,138.54,138.44,0.27369531]
[1767891620315,0.30139699,138.51,138.4,85.67369531]
[1767891620521,0.30139699,138.51,138.4,0.27369531]
[1767891620702,0.30139699,138.49,138.37,7.7681281]
[1767891620907,0.35502235,138.47,138.36,0.27369531]
[1767891621318,0.30139699,138.47,138.36,0.27369531]
[1767891621515,0.30139699,138.51,138.38,0.27369531]
[1767891621722,0.30139699,138.51,138.39,0.27369531]
[1767891621917,0.30139699,138.51,138.4,0.27369531]
[1767891622415,0.30139699,138.51,138.37,7.7681281]
[1767891622416,0.30139699,138.49,138.37,7.7681281]
[1767891625513,0.30139699,138.39,138.26,0.27369531]
[1767891626206,0.30139699,138.39,138.31,0.04736029]
[1767891626611,85.34,138.45,138.31,0.26938756]
[1767891626817,0.30139699,138.44,138.31,0.26938756]
[1767891627006,0.30139699,138.44,138.32,0.22202727]
[1767891627519,0.30139699,138.44,138.36,0.04801011]
[1767891627722,101.53259699,138.44,138.36,0.04801011]
[1767891627925,0.30139699,138.38,138.27,0.22202727]
[1767891628118,0.30139699,138.38,138.22,202.7692]
[1767891628119,0.30139699,138.38,138.24,0.22202727]
[1767891628423,0.30139699,138.38,138.27,0.22202727]
[1767891629213,0.05263319,138.34,138.27,0.22202727]
[1767891630214,0.30139699,138.42,138.29,0.16939408]
[1767891630524,101.51769699,138.46,138.32,0.16939408]
[1767891630728,0.30139699,138.45,138.32,0.16939408]
[1767891630915,0.30139699,138.45,138.33,0.16939408]
[1767891631111,6.80849699,138.45,138.33,0.16939408]
[1767891631425,0.30139699,138.49,138.36,0.16939408]
[1767891631627,0.30139699,138.49,138.38,0.21510903]
[1767891631923,6.5043,138.51,138.39,0.16939408]
[1767891632422,6.5043,138.51,138.42,0.04661341]
[1767891632817,6.5049,138.5,138.39,85.58939408]
[1767891633022,6.5049,138.5,138.36,101.2823]
[1767891633023,0.32488636,138.47,138.36,85.58938294]
[1767891633528,0.04905736,138.43,138.36,0.16938294]
[1767891633719,0.04905736,138.43,138.36,85.58938294]
[1767891634214,0.04905736,138.43,138.37,0.16938294]
[1767891635822,0.04905736,138.43,138.37,6.67988294]
[1767891636021,0.32488636,138.47,138.38,0.16938294]
[1767891636322,0.32488636,138.47,138.39,0.04747372]
[1767891638018,0.32488636,138.51,138.39,0.04747372]
[1767891638322,0.32488636,138.51,138.39,0.21685666]
[1767891638526,0.32488636,138.51,138.4,6.509]
[1767891638920,0.32488636,138.51,138.44,0.04783762]
[1767891639118,6.82938636,138.51,138.39,0.16938294]
[1767891639313,0.04731036,138.47,138.39,0.16938294]
[1767891639917,0.37219672,138.47,138.38,6.51]
[1767891640113,0.04731036,138.47,138.39,0.21722056]
[1767891640314,0.32488636,138.5,138.39,0.21722056]
[1767891640825,0.32488636,138.5,138.43,0.05413592]
[1767891641829,0.32488636,138.53,138.43,0.27135648]
[1767891642133,0.32488636,138.53,138.44,0.21722056]
[1767891642329,6.82948636,138.51,138.4,92.12652056]
[1767891642538,0.32488636,138.51,138.41,0.21722056]
[1767891642924,0.04653797,138.47,138.41,0.21722056]
[1767891645432,0.04653797,138.47,138.38,0.21722056]
[1767891645820,6.5058,138.48,138.38,0.21722056]
[1767891646020,6.83068636,138.48,138.38,0.21722056]
[1767891646231,0.05215729,138.44,138.38,0.21722056]
[1767891646434,0.05215729,138.44,138.37,85.4]
[1767891646733,0.05215729,138.44,138.37,85.61722056]
[1767891647128,0.05215729,138.44,138.38,0.21722056]
[1767891648525,0.32488636,138.52,138.41,0.16506327]
[1767891648731,0.32488636,138.56,138.44,0.16506327]
[1767891649332,6.82728636,138.55,138.45,6.5068]
[1767891649935,6.82728636,138.55,138.49,0.04556387]
[1767891650438,0.32488636,138.55,138.49,0.04556387]
[1767891650637,6.5016,138.57,138.49,0.04556387]
[1767891652137,0.04588134,138.54,138.49,0.04556387]
[1767891652541,0.04588134,138.54,138.46,0.16506327]
[1767891652934,0.04588134,138.54,138.5,0.05531203]
[1767891655136,0.04588134,138.54,138.46,0.16506327]
[1767891655336,0.04588134,138.54,138.46,85.54506327]
[1767891655537,0.04588134,138.54,138.47,0.16506327]
[1767891655842,0.32488636,138.6,138.49,6.67006327]
[1767891656638,6.5005,138.59,138.49,6.67006327]
[1767891657034,0.32488636,138.58,138.49,0.16506327]
[1767891657350,0.32488636,138.58,138.48,85.54506327]
[1767891657941,6.82618636,138.58,138.48,85.54506327]
[1767891658246,0.32488636,138.56,138.45,6.67176327]
[1767891658542,0.32488636,138.56,138.45,92.03176327]
[1767891659643,6.5024,138.55,138.45,92.03176327]
[1767891659834,0.32488636,138.55,138.45,85.36]
[1767891660244,6.82918636,138.51,138.42,0.16506327]
[1767891660439,6.82918636,138.51,138.42,85.52506327]
[1767891660638,6.82828636,138.53,138.43,0.16506327]
[1767891660844,0.32488636,138.53,138.45,0.04648456]
[1767891661648,0.32488636,138.52,138.45,0.04648456]
[1767891661948,0.32488636,138.55,138.45,0.04648456]
[1767891662152,0.32488636,138.55,138.45,0.21154783]
[1767891662350,6.80355924,138.53,138.45,0.04648456]
[1767891662549,0.29995924,138.57,138.44,0.1647484]
[1767891662746,101.43705924,138.57,138.49,0.0486579]
[1767891662944,6.5029,138.54,138.45,85.36]
[1767891663245,0.04599274,138.52,138.45,85.36]
[1767891663436,0.34595198,138.52,138.4,0.1647484]
[1767891663637,0.34595198,138.52,138.41,85.36]
[1767891663841,105.9290269,138.55,138.41,85.36]
[1767891663842,0.29995924,138.51,138.41,85.5247484]
[1767891664347,0.29995924,138.55,138.43,0.1647484]
[1767891664851,6.5029,138.54,138.45,6.5068]
[1767891665644,0.30796977,138.52,138.39,0.16524306]
[1767891665945,0.30796977,138.52,138.41,0.16524306]
[1767891666349,6.81176977,138.52,138.42,6.67334306]
[1767891666749,0.30796977,138.52,138.42,0.16524306]
[1767891667049,0.30796977,138.49,138.39,0.16524306]
[1767891667253,0.30796977,138.48,138.37,85.36]
[1767891667450,0.30796977,138.48,138.37,85.52524306]
[1767891667648,0.30796977,138.48,138.38,0.16524306]
[1767891667951,0.0493069,138.44,138.41,0.04728644]
[1767891668354,0.30796977,138.48,138.41,0.04728644]
[1767891670052,6.81376977,138.48,138.41,0.04728644]
[1767891670244,0.30796977,138.47,138.41,0.04728644]
[1767891670756,0.30796977,138.47,138.39,6.5097]
[1767891670959,0.30796977,138.47,138.43,0.04929472]
[1767891672164,0.30796977,138.5,138.43,0.04929472]
[1767891672565,0.30796977,138.5,138.4,85.54524306]
[1767891673063,0.30796977,138.5,138.45,0.05010735]
[1767891673755,4.7778269,138.54,138.45,0.05010735]
[1767891673960,0.30796977,138.53,138.45,0.05010735]
[1767891674157,0.30796977,138.53,138.43,85.54524306]
[1767891674555,0.30796977,138.53,138.48,0.05397362]
[1767891676149,6.81226977,138.51,138.42,85.38]
[1767891676369,0.30796977,138.51,138.4,0.21921668]
[1767891676560,6.5061,138.47,138.38,12.99364696]
[1767891676755,0.30796977,138.49,138.39,85.38]
[1767891676955,0.30796977,138.49,138.38,85.59921668]
[1767891677168,0.30796977,138.49,138.4,6.5092]
[1767891677379,4.7778269,138.51,138.4,6.5092]
[1767891677380,0.30796977,138.53,138.4,0.21921668]
[1767891677758,0.30796977,138.52,138.42,6.5082]
[1767891678563,0.30796977,138.52,138.42,6.72741668]
[1767891678867,0.30796977,138.52,138.43,6.5079]
[1767891679367,0.30796977,138.52,138.44,6.5074]
[1767891680660,6.81176977,138.52,138.42,85.59921668]
[1767891681060,0.30796977,138.55,138.43,0.21921668]
[1767891681262,6.5033,138.53,138.44,6.5074]
[1767891682059,6.5039,138.52,138.43,85.59921668]
[1767891682570,0.30796977,138.52,138.41,85.38]
[1767891683079,0.30796977,138.52,138.4,0.21921668]